Cogmind - Beta 13 @@@ ROGUE MODE // 2024.04.02 @ 12:32:57 Player: Olafz Result: Destroyed by G-47 Trooper with Particle Gun Performance ------------- Evolutions (3) 1500 Regions Visited (7) 1400 Robots Destroyed (34) 170 Value Destroyed (1050) 1050 Prototype IDs (9) 180 Alien Tech Used (0) 0 Bonus (321) 321 TOTAL SCORE: 4621 Bonus ------- Pacifist 200 Follower Combat Kills 137 Friendly Fire -16 Cogmind --------- Core Integrity 0/700 Matter 280/300 Energy 95/100 System Corruption 0% Temperature Cool (9) Movement Flying (115) Ox1 Location -7/Storage Parts ------- > --- POWER (1) -------- (None) > --- PROPULSION (3) --- VTOL Module > --- UTILITY (7) ------ Visual Processing Unit Signal Interpreter Transport Network Coupler Improved Utility Shielding > --- WEAPON (2) ------- Chainsword Power Sword > --- INVENTORY (5) ---- Ion Engine Light Nuclear Core Weight Redist. System Transport Network Coupler Peak State ------------ > --- POWER ------------ Ion Engine > --- PROPULSION ------- Aluminum Leg Carbon-fiber Leg Carbon-fiber Leg > --- UTILITY ---------- Heat Sink Visual Processing Unit Sensor Array Signal Interpreter Transport Network Coupler Improved Utility Shielding Improved Medium Armor Plating > --- WEAPON ----------- Precision Shock Rifle Heavy Assault Rifle > --- INVENTORY -------- Weight Redist. System Transport Network Coupler Chainsword Power Sword Power Sword [Rating: 29] Favorites ----------- Power Ion Engine Engine Ion Engine Power Core Light Nuclear Core Propulsion Aluminum Leg Leg Aluminum Leg Flight Unit VTOL Module Utility Light Armor Plating Device Heat Sink Storage Small Storage Unit Processor Transport Network Coupler Protection Light Armor Plating Weapon Heavy Assault Rifle Energy Gun Precision Shock Rifle Energy Cannon Advanced Beam Cannon Ballistic Gun Heavy Assault Rifle Slashing Weapon Power Sword Build | -11 -10 -10 -9 -9 -8 -7 -7 ------- Run | Yrd Mat Min Mat Min Mat Fac Sto Slots Evolved 6 | . . . 2 . 2 2 . Power . | . . . . . . . . Propulsion 1 | . . . . . . 1 . Utility 5 | . . . 2 . 2 1 . Weapon . | . . . . . . . . Parts Attached 46 | 6 . 3 8 . 7 13 9 Power 6 | 1 . 1 . . 2 . 2 Engine 3 | 1 . 1 . . 1 . . Core 3 | . . . . . 1 . 2 Reactor . | . . . . . . . . Propulsion 14 | 2 . . . . 3 6 3 Treads . | . . . . . . . . Leg 12 | 2 . . . . 3 5 2 Wheel . | . . . . . . . . Hover . | . . . . . . . . Flight 2 | . . . . . . 1 1 Utility 11 | 1 . 1 2 . 2 4 1 Device 3 | . . . 1 . 1 1 . Storage 1 | 1 . . . . . . . Processor 3 | . . . . . 1 2 . Hackware . | . . . . . . . . Protection 4 | . . 1 1 . . 1 1 Artifact . | . . . . . . . . Weapon 15 | 2 . 1 6 . . 3 3 Energy Gun 4 | . . . 2 . . 2 . Energy Cannon 1 | . . . 1 . . . . Ballistic Gun 7 | 2 . 1 3 . . 1 . Ballistic Cannon . | . . . . . . . . Launcher . | . . . . . . . . Special Weapon . | . . . . . . . . Impact Weapon . | . . . . . . . . Slashing Weapon 3 | . . . . . . . 3 Piercing Weapon . | . . . . . . . . Special Melee Weapon . | . . . . . . . . Unidentified Prototypes 5 | . . . 3 . . 2 . Parts Lost 19 | . . . . . 4 4 11 Power 2 | . . . . . 1 . 1 Propulsion 7 | . . . . . 1 1 5 Utility 6 | . . . . . 2 1 3 Weapon 4 | . . . . . . 2 2 Highest Loss Streak 7 | . . . . . 4 4 7 To Critical Strikes . | . . . . . . . . Average Slot Usage (%) 88 | . 85 88 90 100 89 86 84 Engine 8 | . 14 14 11 11 4 7 4 Core 1 | . . . . . 4 . 1 Leg 22 | . 28 28 22 22 17 22 17 Device 10 | . . . 7 11 11 19 12 Storage 7 | . 14 14 11 11 9 2 . Processor 8 | . . . . . 9 15 23 Protection 10 | . . 3 18 22 16 6 8 Energy Gun 1 | . . . 2 . . 3 2 Ballistic Gun 15 | . 28 28 17 22 18 6 2 Naked Turns . | . . . . . . . . Heaviest Build 26 | 12 12 18 26 25 25 24 23 Greatest Support 43 | 20 20 20 20 20 33 43 40 Greatest Overweight (x) 1 | . . . 1 1 1 . 1 Average Overweight (x) . | . . . . 1 . . . Largest Inventory Capacity 8 | 8 8 8 8 8 8 8 5 Average Capacity 7 | 6 8 8 8 8 8 6 5 Most Carried 8 | . . 2 8 7 8 8 5 Average Carried 4 | . . 1 4 7 7 4 4 Final Capacity 8 | 8 8 8 8 8 8 5 5 Final Carried 7 | . . 2 7 7 7 4 4 Class Distribution -------------------- 56% | Scavenger-Mutant 28% | Mutant 9% | Scavenger-Skirmisher 5% | Scavenger-Assassin Dominant Class ---------------- Mutant | -10/Materials Mutant | -10/Mines Scavenger-Mutant | -9/Materials Scavenger-Mutant | -9/Mines Scavenger-Mutant | -8/Materials Scavenger-Mutant | -7/Factory Scavenger-Assassin | -7/Storage Resources | -11 -10 -10 -9 -9 -8 -7 -7 ----------- Run | Yrd Mat Min Mat Min Mat Fac Sto Matter Collected 875 | 177 . 51 152 48 199 58 190 Remotely . | . . . . . . . . Salvage Created 1452 | . . . 139 137 568 262 346 Parts 84 | . . . 12 7 31 11 23 Haulers Intercepted 3 | . . . 1 . 2 . . Recyclers Shooed 4 | . . . . 1 2 1 . Parts Field Recycled . | . . . . . . . . Retrieved Matter . | . . . . . . . . Parts Self-Destructed . | . . . . . . . . Prevented . | . . . . . . . . Kills | -11 -10 -10 -9 -9 -8 -7 -7 ------- Run | Yrd Mat Min Mat Min Mat Fac Sto Combat Hostiles Destroyed 24 | . . . 2 3 6 4 9 Melee 9 | . . . . . . . 9 Guns 15 | . . . 2 3 6 4 . Classes Destroyed 9 | . . . 3 2 4 . . Worker 2 | . . . . . 2 . . Hauler 3 | . . . 1 . 2 . . Recycler 4 | . . . . 1 2 1 . Operator 1 | . . . . . 1 . . Swarmer 7 | . . . . 3 . . 4 Grunt 13 | . . . 1 . 4 4 4 Brawler 1 | . . . . . 1 . . Sentry 2 | . . . 1 . . . 1 Hunter 1 | . . . . . 1 . . Best Kill Streak 6 | . . . 1 4 4 5 6 Combat Bots Only 6 | . . . 1 3 3 4 6 Max Kills in Single Turn 2 | . . . 1 1 2 1 2 Gunslinging . | . . . . . . . . Exploded . | . . . . . . . . Melee 2 | . . . . . . . 2 Uniques/NPCs Destroyed . | . . . . . . . . Combat | -11 -10 -10 -9 -9 -8 -7 -7 -------- Run | Yrd Mat Min Mat Min Mat Fac Sto Hostile Shots Fired 270 | . . 2 4 4 28 47 185 Missed 91 | . . . 2 1 7 17 64 Damage Taken 2969 | . . 30 28 36 538 798 1539 Core 725 | . . . . . 20 140 565 Absorbed by Shields . | . . . . . . . . Redirected to Shielding 84 | . . . . . . . 84 Core Remaining (%) 99 | 100 . 100 . 100 96 . . Volleys Fired 69 | . . 1 6 5 32 22 3 Largest 2 | . . 2 2 2 2 2 2 Hottest 78 | . . 40 43 46 46 46 78 Shots Fired 118 | . . 2 12 10 64 25 5 Gun 118 | . . 2 12 10 64 25 5 Cannon . | . . . . . . . . Launcher . | . . . . . . . . Special . | . . . . . . . . Kinetic 116 | . . 2 12 10 64 25 3 Thermal . | . . . . . . . . Explosive . | . . . . . . . . Electromagnetic 2 | . . . . . . . 2 Robot Hit Streak 13 | . . 1 7 4 9 13 1 Robot Miss Streak 4 | . . 1 1 1 4 2 1 Penetration Max . | . . . . . . . . Secondary Targets . | . . . . . . . . Shots Hit Robots 105 | . . 1 9 6 44 20 25 Core Hits 61 | . . 1 7 5 26 11 11 Critical Kills . | . . . . . . . . Critical Parts Destroyed . | . . . . . . . . Critical Strikes 4 | . . . . . . . 4 Sever 4 | . . . . . . . 4 Melee Attacks 31 | . . . . . . . 31 Impact . | . . . . . . . . Slashing 31 | . . . . . . . 31 Piercing . | . . . . . . . . Sneak Attacks . | . . . . . . . . Combat Hostiles . | . . . . . . . . Follow-up Attacks 5 | . . . . . . . 5 Damage Inflicted 2152 | . . 9 94 90 617 400 942 Guns 1138 | . . 9 94 90 617 296 32 Cannons . | . . . . . . . . Explosions 116 | . . . . . . 88 28 Melee 882 | . . . . . . . 882 Ramming 16 | . . . . . . 16 . Kinetic 1138 | . . 9 94 90 617 296 32 Thermal 88 | . . . . . . 88 . Explosive 28 | . . . . . . . 28 Electromagnetic . | . . . . . . . . Impact . | . . . . . . . . Slashing 882 | . . . . . . . 882 Piercing . | . . . . . . . . Highest Corruption . | . . . . . . . . Average Corruption . | . . . . . . . . Corruption Purged . | . . . . . . . . Corruption Blocked . | . . . . . . . . Overload Shots . | . . . . . . . . Overflow Damage 90 | . . . . . . 78 12 Projectiles . | . . . . . . . . Explosions 79 | . . . . . . 78 1 Melee 11 | . . . . . . . 11 Knockbacks . | . . . . . . . . Impact . | . . . . . . . . Kinetic . | . . . . . . . . Secondary . | . . . . . . . . Self-Inflicted Damage 270 | . . . . . . 194 76 Shots 4 | . . . . . . 3 1 Rammed . | . . . . . . . . Targets Rammed 1 | . . . . . . 1 . Kicked 1 | . . . . . . 1 . Crushed . | . . . . . . . . Highest Temperature 396 | . . . 11 . 23 396 21 Average Temperature 69 | . . . 3 . 14 136 10 Received Heat Transfer 1155 | . . 9 18 . 225 288 615 Effects 2 | . . . . . . 2 . Shutdowns 1 | . . . . . . 1 . Energy Bleed 1 | . . . . . . 1 . Siege Activations . | . . . . . . . . Robots Corrupted . | . . . . . . . . Combat Hostiles . | . . . . . . . . Parts Fried . | . . . . . . . . Impact Corruptions . | . . . . . . . . Robots Melted . | . . . . . . . . Combat Hostiles . | . . . . . . . . Parts Melted 1 | . . . . . 1 . . Heat Transferred 50 | . . . . . . 50 . Parts Sabotaged . | . . . . . . . . Parts Stolen . | . . . . . . . . Parts Stripped . | . . . . . . . . Power Chain Reactions . | . . . . . . . . Alert | -11 -10 -10 -9 -9 -8 -7 -7 ------- Run | Yrd Mat Min Mat Min Mat Fac Sto Peak Influence 315 | . . . 231 173 315 195 190 Initial 90 | . . . . 90 66 33 13 Average 93 | . . . 135 169 174 84 81 Maximum Alert Level 1 | . . . 1 . 1 . . Low Security (%) 88 | 100 100 100 99 100 41 100 100 Level 1 11 | . . . . . 58 . . Level 2 . | . . . . . . . . Level 3 . | . . . . . . . . Level 4 . | . . . . . . . . Level 5 . | . . . . . . . . High Security . | . . . . . . . . Max Security . | . . . . . . . . Squads Dispatched 4 | . . . . . 1 1 2 Investigation 1 | . . . . . . . 1 Extermination 1 | . . . . . . 1 . Reinforcement 2 | . . . . . 1 . 1 Assault . | . . . . . . . . Garrison . | . . . . . . . . Intercept . | . . . . . . . . Searches Triggered . | . . . . . . . . Construction Impeded . | . . . . . . . . Haulers Reinforced . | . . . . . . . . Active Scanning Responses . | . . . . . . . . Cargo Convoy Interrupts . | . . . . . . . . Stealth | -11 -10 -10 -9 -9 -8 -7 -7 --------- Run | Yrd Mat Min Mat Min Mat Fac Sto Distress Signals 2 | . . . 1 . . . 1 Communications Jammed . | . . . . . . . . Distress Signals . | . . . . . . . . Times Spotted 48 | . . 2 9 2 9 6 20 Peak Tracking Total 12 | . . 2 3 2 3 4 12 Tactical Retreats 2 | . . . 2 . . . . Traps | -11 -10 -10 -9 -9 -8 -7 -7 ------- Run | Yrd Mat Min Mat Min Mat Fac Sto Traps Triggered . | . . . . . . . . Indirectly . | . . . . . . . . Trap Hack Attempts . | . . . . . . . . Triggered . | . . . . . . . . Disarmed . | . . . . . . . . Reprogrammed . | . . . . . . . . Reused . | . . . . . . . . Traps Extracted . | . . . . . . . . Installed . | . . . . . . . . Triggered . | . . . . . . . . Machines | -11 -10 -10 -9 -9 -8 -7 -7 ---------- Run | Yrd Mat Min Mat Min Mat Fac Sto Machines Disabled 8 | . . 1 . . 1 5 1 Max in Single Turn 5 | . . 1 . . . 5 1 Machines Repaired . | . . . . . . . . Machines Dismantled . | . . . . . . . . Machines Sabotaged . | . . . . . . . . Overloaded Fab Kills . | . . . . . . . . Hacking | -11 -10 -10 -9 -9 -8 -7 -7 --------- Run | Yrd Mat Min Mat Min Mat Fac Sto Machines Accessed 5 | . . . 1 . 1 1 2 Terminals 4 | . . . 1 . 1 . 2 Fabricators 1 | . . . . . . 1 . Repair Stations . | . . . . . . . . Recycling Units . | . . . . . . . . Scanalyzers . | . . . . . . . . Garrison Access . | . . . . . . . . Total Hacks 15 | . . . 5 . 2 1 7 Successful 7 | . . . 2 . . 1 4 Failed 8 | . . . 3 . 2 . 3 Catastrophic 2 | . . . . . . . 2 Database Lockouts . | . . . . . . . . Manual 1 | . . . . . . . 1 Terminals 14 | . . . 5 . 2 . 7 Fabricators 1 | . . . . . . 1 . Repair Stations . | . . . . . . . . Recycling Units . | . . . . . . . . Scanalyzers . | . . . . . . . . Garrison Access . | . . . . . . . . Terminal Hacks 6 | . . . 2 . . . 4 Record 4 | . . . 1 . . . 3 Prototype ID Bank 2 | . . . 1 . . . 1 Fabricator Hacks 1 | . . . . . . 1 . Build 1 | . . . . . . 1 . Repair Station Hacks . | . . . . . . . . Recycling Unit Hacks . | . . . . . . . . Scanalyzer . | . . . . . . . . Garrison Access Hacks . | . . . . . . . . Unauthorized Hacks . | . . . . . . . . Terminals . | . . . . . . . . Fabricators . | . . . . . . . . Repair Stations . | . . . . . . . . Recycling Units . | . . . . . . . . Scanalyzers . | . . . . . . . . Garrison Access . | . . . . . . . . Data Cores Recovered . | . . . . . . . . Used . | . . . . . . . . Hacking Detections 3 | . . . 1 . 1 . 1 Full Trace Events 1 | . . . . . . . 1 Feedback Events . | . . . . . . . . Feedback Blocked . | . . . . . . . . Robot Schematics Acquired . | . . . . . . . . Robots Built . | . . . . . . . . Authchips . | . . . . . . . . Time . | . . . . . . . . Total Robot Build Rating . | . . . . . . . . Part Schematics Acquired . | . . . . . . . . Parts Built 2 | . . . . . . 2 . Authchips . | . . . . . . . . Time 47 | . . . . . . 47 . Total Part Build Rating 10 | . . . . . . 10 . Parts Repaired . | . . . . . . . . Time . | . . . . . . . . Parts Recycled . | . . . . . . . . Recycled Matter . | . . . . . . . . Retrieved Matter . | . . . . . . . . Retrieved Components . | . . . . . . . . Parts Scanalyzed . | . . . . . . . . Part Schematics Acquired . | . . . . . . . . Parts Damaged . | . . . . . . . . Bothacking | -11 -10 -10 -9 -9 -8 -7 -7 ------------ Run | Yrd Mat Min Mat Min Mat Fac Sto Used RIF Installer . | . . . . . . . . Robots Hacked . | . . . . . . . . Non-combat . | . . . . . . . . Combat . | . . . . . . . . Robot Hacks Applied . | . . . . . . . . Relay Couplers Released . | . . . . . . . . Fabnet Peak Effective % . | . . . . . . . . Robots Rewired . | . . . . . . . . Allies Hacked . | . . . . . . . . Hacks Repelled . | . . . . . . . . Allies | -11 -10 -10 -9 -9 -8 -7 -7 -------- Run | Yrd Mat Min Mat Min Mat Fac Sto Total Allies 3 | . . 3 . . . . . Largest Group 3 | . . 3 3 2 2 . . Highest-Rated Group 40 | . . 40 40 32 32 . . Highest-Rated Ally 16 | . . 16 16 16 16 . . Total Orders . | . . . . . . . . Ally Attacks 49 | . . 1 25 5 18 . . Total Damage 516 | . . 18 284 31 183 . . Kills 9 | . . . 7 . 2 . . Allies Corrupted 1 | . . . . . 1 . . Allies Melted . | . . . . . . . . Intel | -11 -10 -10 -9 -9 -8 -7 -7 ------- Run | Yrd Mat Min Mat Min Mat Fac Sto Robot Analysis Total . | . . . . . . . . Derelict Logs Recovered 2 | . . 1 . 1 . . . Drone Launches . | . . . . . . . . Drone Recoveries . | . . . . . . . . Exploration | -11 -10 -10 -9 -9 -8 -7 -7 ------------- Run | Yrd Mat Min Mat Min Mat Fac Sto Turns Passed 2126 | 62 54 394 326 97 426 547 220 Spaces Moved 1298 | 53 46 323 174 44 179 368 111 Core 17 | 14 . . . . 1 . 2 Treads . | . . . . . . . . Legs 1281 | 39 46 323 174 44 178 368 109 Wheels . | . . . . . . . . Hover . | . . . . . . . . Flight . | . . . . . . . . Fastest Speed 50 | 50 120 120 120 190 90 105 100 Average Speed 132 | 101 120 120 160 190 166 114 120 Slowest Speed 190 | 120 120 120 190 190 190 120 190 Overloaded Moves . | . . . . . . . . Propulsion Burnouts . | . . . . . . . . Robots Hopped . | . . . . . . . . Cave-ins Triggered . | . . . . . . . . Exploration Rate (%) 19 | 2 13 75 13 8 19 8 21 Regions Visited 7 Branch Regions 3 Pre-discovered Areas . | . . . . . . . . Known Exits Taken 2 | . . . 1 . . 1 . Unknown Exits Taken 5 | 1 1 1 . 1 1 . . Scrap Searched 2 | . . 2 . . . . . Spaces Dug . | . . . . . . . . Terrain Destroyed 52 | . . . . . . 36 16 Melee . | . . . . . . . . Projectile . | . . . . . . . . AOE 52 | . . . . . . 36 16 Terrain Rammed . | . . . . . . . . Walls Destroyed . | . . . . . . . . Machines Disabled . | . . . . . . . . Actions | -11 -10 -10 -9 -9 -8 -7 -7 --------- Run | Yrd Mat Min Mat Min Mat Fac Sto Total 1545 | 58 45 326 210 48 241 466 151 Wait 87 | . . . 11 . 20 55 1 Move 1291 | 52 45 322 173 43 178 367 111 Hop . | . . . . . . . . Pick Up 9 | . . . 5 . 1 3 . Fast Attach 26 | 6 . 1 6 . 3 6 4 Attach 11 | . . . 1 . 2 5 3 Detach 5 | . . . 2 . 1 1 1 Swap 9 | . . 2 1 . 2 2 2 Drop 12 | . . . 5 . 2 4 1 Fire 69 | . . 1 6 5 32 22 3 Melee 25 | . . . . . . . 25 Ram . | . . . . . . . . Kick 1 | . . . . . . 1 . Crush . | . . . . . . . . Escape Stasis . | . . . . . . . . Rewire . | . . . . . . . . Trap . | . . . . . . . . Miscellaneous . | . . . . . . . . Route ------- -11/Scrapyard -10/Materials -10/Mines -9/Materials (discovered 2 exits: *Min x2) -9/Mines -8/Materials -7/Factory -7/Storage History --------- Turn | Location | Event 10 | -11/Scrapyard | Discovered new exit (range 16) 63 | -11/Scrapyard | Entered Materials 95 | -10/Materials | Discovered new exit (range 11) 117 | -10/Materials | Entered Mines 163 | -10/Mines | Assisted by bots powering up and referring to "LRC-V3" 201 | -10/Mines | Met a Derelict bent on vengeance 312 | -10/Mines | Build established: Mutant 412 | -10/Mines | Joined a pair of Derelicts in attacking an 0b10 outpost 494 | -10/Mines | Discovered new exit (range 12) 511 | -10/Mines | Entered Materials 511 | -9/Materials | Accompanied by 3 allies 511 | -9/Materials | Evolved 2 slots: Utility x2 512 | -9/Materials | Identified exit to Mines 837 | -9/Materials | Entered Mines 837 | -9/Mines | Accompanied by 2 allies 870 | -9/Mines | Discovered new exit (range 6) 902 | -9/Mines | Learned Materials garrison access intel 911 | -9/Mines | Build established: Scavenger-Mutant 934 | -9/Mines | Entered Materials 934 | -8/Materials | Accompanied by 2 allies 934 | -8/Materials | Evolved 2 slots: Utility x2 935 | -8/Materials | Loaded intel: 1 garrison access location 1282 | -8/Materials | Discovered new exit (range 10) 1358 | -8/Materials | Lost 4 parts (1p1n2u) 1360 | -8/Materials | Entered Factory 1360 | -7/Factory | Evolved 2 slots: Propulsion x1, Utility x1 1607 | -7/Factory | Lost 4 parts (1n1u2w) 1694 | -7/Factory | Discovered new exit (range 3) 1742 | -7/Factory | Identified exit to Storage 1855 | -7/Factory | Fabricated Power Sword (x2) 1907 | -7/Factory | Entered Storage 2037 | -7/Storage | Lost 4 parts (2n1u1w) 2093 | -7/Storage | Core integrity fell below 50% 2103 | -7/Storage | Core integrity fell below 20% 2127 | -7/Storage | Destroyed by G-47 Trooper with Particle Gun Last Messages --------------- 02100_ K-01 Serf collects debris. 02100_ R-06 Scavenger collects Particle Gun. 02101_ Acquired 21 matter. 02103_ K-01 Serf collects debris. 02104_ Acquired VTOL Module. 02105_ K-01 Serf collects debris. 02107_ Power Sword follow-up attack on G-47 Trooper. 02107_ G-47 Trooper Aluminum Leg severed. 02108_ K-01 Serf collects debris. 02109_ Destroyed Imp. Heat Sink. 02109_ Power Sword follow-up attack on G-47 Trooper. 02109_ G-47 Trooper destroyed. 02111_ K-01 Serf collects debris. 02115_ S-27 Virus destroyed. 02117_ K-01 Serf collects debris. 02119_ Critical hit (Burn: +37). 02120_ G-50 Soldier Hvy. Laser severed. 02121_ K-01 Serf collects debris. 02122_ Power Sword follow-up attack on G-47 Trooper. 02124_ K-01 Serf collects debris. Map ----- +----------------------------------------------------+ | ?????????????????????????????????????? | | ?????????????????a???????????????????? | | ?????????????????????????????????????? | | ?????????????????????????????????????? | | ?????????????????????????????????????? | | ??????????????? ????????????????????? | | ??????????????# #???????????????????? | | ?????????????? ???????????????????? | | ?????????????? ???????????????????? | | ?????????????? ???????????????????? | | ?????????????? !???????????????????? | | ??????????????# #???????????????????? | | ??????????????# #???????????????????? | | ??????????????# #???????????????????? | | ??????????????# #???????????????????? | | ??????????????# #???????????????????? | | ??????????????# #???????????????????? | | ??????????????# #################???? | | ??????????????# ""G"" + #???? | | ??????????????# "" "" # #???? | | ???############ % # #???? | | ???# # #???? | | ???# """ + #???? | | ???# """ #k #???? | | ???######+##### """ *#[* #???? | | ?????# # %#@% k #???? | | ?????# """ / =%g[*[ #???? | | ?????# """ ###### [*##########???? | | ????## """ #????# =#????????????? | | ????# #????# #????????????? | | ????## #????# #????????????? | | ???## #????# #????????????? | | ???# #????# #????????????? | | ???# #????# #????????????? | | ???# [[ ###????# #????????????? | | ???####T #??????#+## ????????????? | | ??????" # #?????????? ????????????? | | ??????"[+ #?????????? ????????????? | | ??????" # #?? "?????? ????????????? | | ??????###* # "???????###???????????? | | ????????# + "??????????????????????? | | ????????# # "??????????????????????? | | ????????# #????????????????????????? | | ????????# #????????????????????????? | | ????????# #????????????????????????? | | ???????## ##???????????????????????? | | ???????# ###########?????????????? | | ???????# #?????????????? | | ???????# #?????????????? | | ???????# #?????????????? | +----------------------------------------------------+ Best States ------------- Heat Dissipation 44 Energy Generation 14 Energy Capacity 265 Matter Stores 300 Matter Capacity 300 Sight Range 18 Robot Scan Range 14 Terrain Scan Density 10 Additional Mass Support 6 Armor Coverage 300 Utility Shielding 66 Evasion (%) 57 Item Schematics ----------------- None Robot Schematics ------------------ None Fabricated ------------ Power Sword | x2 | -7/Factory | Preloaded Alien Tech Used ----------------- None Achievements -------------- None Challenges ------------ None Game ------ Seed BombDrainedFlightbrick Manual? 0 Play Time 00:34:43 Cumulative 14.4 hours Start 2024.04.02 @ 11:42:51 End 2024.04.02 @ 12:32:57 Sessions 1 Manual Loads 0 Difficulty Rogue Special Mode None Game No. 41 Rogue 39 Adventurer 2 Explorer 0 Win Type - Total 0 Types 0/0/0/0/0/0/0/0/0 Lore% 16 Gallery% 19 Achievement% 18 Wizard Run 0 Options --------- Layout 0 ASCII 0 Keyboard 1 Movement Arrows Keybinds 0 Fullscreen 2 Font 18/SmallcapsGlow Map View 76x50 Zoom Use 0% Tactical HUD 1 Map Filters NONE Filters NONE Steam 1 RUN: a2da5aab-3188-486a-9952-75de1419c6b0